fUST/lending_fUST_20241125
["ID","MTS","AMOUNT","RATE_DAILY","PERIOD"]
[343224438,1732488638454,-749.81102107,0.00028247,2]
[343224439,1732488638463,-564.47,0.000283,2]
[343224440,1732488638472,-749.81102107,0.00028347,2]
[343224441,1732488638482,-1869.43,0.00028368,2]
[343224442,1732488638491,-749.81102107,0.00028446,2]
[343224443,1732488638500,-330.0,0.00028542,2]
[343224444,1732488638509,-181.41633279,0.00028546,2]
[343224445,1732488638519,-13232.36359782,0.00028546,2]
[343224446,1732488638528,-749.81102107,0.00028546,2]
[343224447,1732488638538,-420.0,0.00028552,2]
[343224448,1732488638547,-346.34319195,0.000286,2]
[343224449,1732488638559,-1276.1143364,0.000286,2]
[343224458,1732488640055,-37880.73994473,0.000286,2]
[343224459,1732488640065,-223.703014,0.000286,2]
[343224460,1732488640075,-616.0,0.000286,2]
[343224461,1732488640084,-2157.553,0.000286,2]
[343224462,1732488640094,-2157.553,0.000286,2]
[343224463,1732488640103,-725.21574148,0.00028641,2]
[343224464,1732488640113,-1869.43,0.00028642,2]
[343224465,1732488640124,-500.0,0.00028642,10]
[343224466,1732488640134,-500.0,0.00028642,10]
[343224467,1732488640143,-500.0,0.00028642,10]
[343224468,1732488640154,-500.0,0.00028642,10]
[343224469,1732488640165,-500.0,0.00028642,10]
[343224470,1732488640174,-500.0,0.00028642,10]
[343224471,1732488640184,-174.20058792,0.00028645,2]
[343224514,1732488646196,-494.03403234,0.00028645,2]
[343224515,1732488646206,-668.23462026,0.00028645,2]
[343224517,1732488646215,-100461.97377154,0.00028646,10]
[343224547,1732488661580,591.0,0.0002,2]
[343224548,1732488661886,590.0,0.0002,2]
[343224549,1732488662190,590.0,0.0002,2]
[343224550,1732488662494,590.0,0.0002,2]
[343224552,1732488685896,219.876486,0.00013973,2]
[343224560,1732489353659,218.760961,0.00013973,2]
[343224561,1732489608124,-162.07930823,0.00020347,2]
[343224562,1732489608145,-73.67290537,0.00020447,2]
[343224617,1732489832346,-145.08805563,0.00020447,2]
[343224620,1732489832356,-5636.269705,0.00021,2]
[343224622,1732489832367,-191.227,0.0002349,4]
[343224624,1732489832377,-209.67569343,0.00024797,2]
[343224626,1732489832386,-484.7,0.00024886,10]
[343224627,1732489832396,-12941.97341075,0.00024896,2]
[343224630,1732489832407,-2179.48985,0.00024896,2]
[343224767,1732489838673,-525.12094847,0.00024895,2]
[343224768,1732489838683,-188.89920117,0.00024895,2]
[343224769,1732489838692,-401.14593993,0.00024895,2]
[343224770,1732489838701,-284.78722641,0.00024895,2]
[343224771,1732489838711,-500.0,0.00024895,2]
[343224772,1732489838720,-500.0,0.00024895,2]
[343224773,1732489838729,-500.0,0.00024895,2]
[343224774,1732489838738,-500.0,0.00024895,2]
[343224775,1732489838747,-500.0,0.00024895,2]
[343224776,1732489838756,-392.30334973,0.00024895,2]
[343224777,1732489838765,-500.0,0.00024895,2]
[343224778,1732489838775,-196.19819778,0.00024895,2]
[343224779,1732489838787,-18621.80924941,0.00024896,2]
[343224807,1732489840260,-179342.72748984,0.00024896,2]
[343224809,1732489840270,-300.0,0.00024897,2]
[343224810,1732489840284,-300.0,0.00024897,2]
[343224812,1732489840296,-505.74,0.00024898,3]
[343224814,1732489840306,-1402.07,0.0002497,2]
[343224815,1732489840316,-500.0,0.00024973,2]
[343224816,1732489840327,-160.66937533,0.00024973,2]
[343224817,1732489840344,-452.50595125,0.00024973,2]
[343224818,1732489840356,-562.9393885,0.00024973,2]
[343224819,1732489840366,-500.0,0.00024973,2]
[343224820,1732489840378,-500.0,0.00024973,2]
[343224821,1732489840387,-503.56010155,0.00024973,2]
[343224822,1732489840397,-500.0,0.00024973,2]
[343224823,1732489840407,-500.0,0.00024973,2]
[343224824,1732489840416,-300.0,0.00025,2]
[343224825,1732489840426,-300.0,0.00025,2]
[343224826,1732489840435,-300.0,0.00025,2]
[343224827,1732489840445,-274.099999,0.00025,2]
[343224828,1732489840455,-1402.07,0.00025244,2]
[343224829,1732489840464,-1402.07,0.00025518,2]
[343224830,1732489840475,-502.19648279,0.00025521,2]
[343224831,1732489840484,-500.0,0.00025521,2]
[343224832,1732489840493,-300.0,0.000256,2]
[343224833,1732489840504,-209.67569342,0.00025608,2]
[343224834,1732489840513,-1402.07,0.00025792,2]
[343224835,1732489840523,-1402.07,0.00026066,2]
[343224836,1732489840537,-1402.07,0.0002634,2]
[343224837,1732489840547,-660.0,0.00026384,2]
[343224838,1732489840556,-209.67569342,0.00026419,2]
[343224839,1732489840566,-300.0,0.000266,2]
[343224840,1732489840575,-1402.07,0.00026614,2]
[343224841,1732489840585,-1402.07,0.00026888,2]
[343224842,1732489840595,-218.760961,0.00026921,2]
[343224843,1732489840604,-420.0,0.00026975,2]
[343224844,1732489840613,-500.0,0.00027,2]
[343224845,1732489840623,-182.0,0.00027,2]
[343224846,1732489840633,-340.591,0.00027058,2]
[343224847,1732489840642,-1219.631,0.00027058,2]
[343224848,1732489840652,-1402.07,0.00027162,2]
[343224849,1732489840662,-209.67569342,0.00027229,2]
[343224850,1732489840672,-420.0,0.00027387,2]
[343224851,1732489840681,-1402.07,0.00027436,2]
[343224852,1732489840691,-1000.0,0.00027548,5]
[343224853,1732489840700,-300.0,0.000276,2]
[343224854,1732489840710,-1402.07,0.0002771,2]
[343224855,1732489840719,-581.0,0.00027935,2]
[343224856,1732489840729,-1402.07,0.00027984,2]
[343224857,1732489840739,-581.0,0.00028,2]
[343224858,1732489840748,-209.67569342,0.0002804,2]
[343224859,1732489840758,-250000.0,0.0002814,2]
[343224860,1732489840767,-13846.97075807,0.0002814,2]
[343224861,1732489840780,-449.77150189,0.00028173,5]
[343224862,1732489840789,-500.0,0.00028173,5]
[343224863,1732489840798,-500.0,0.00028173,5]
[343224864,1732489840807,-581.0,0.00028209,2]
[343224865,1732489840817,-500.0,0.00028241,2]
[343224866,1732489840826,-1402.07,0.00028258,2]
[343224867,1732489840835,-700.42,0.000283,2]
[343224868,1732489840844,-1165.39214217,0.00028379,2]
[343224869,1732489840853,-2149.98959914,0.00028476,2]
[343224950,1732489846345,-161.0,0.00025,2]
[343224951,1732489846356,-182.0,0.00027,2]
[343224952,1732489846367,-472.0,0.00027,2]
[343224953,1732489846378,-514.60189779,0.0002813,10]
[343224959,1732490468021,216.803026,0.00013973,2]
[343224976,1732490922253,1340.97011181,0.00026,30]
[343225012,1732491032590,-216.803026,0.00020447,2]
[343225014,1732491032599,-1425.31128488,0.00022,3]
[343225016,1732491032611,-1447.60771,0.00022,3]
[343225018,1732491032622,-2693.10047382,0.00022,3]
[343225020,1732491032631,-1050.0,0.00024,2]
[343225022,1732491032641,-300.0,0.00024998,2]
[343225024,1732491032652,-2283.0,0.00024999,2]
[343225026,1732491032661,-300.0,0.00025,2]
[343225028,1732491032671,-272.0,0.00025,2]
[343225029,1732491032681,-161.0,0.00025,2]
[343225032,1732491032691,-2695.39610854,0.00025,2]
[343225093,1732491038635,-3134.0593096,0.00025,2]
[343225094,1732491038646,-300.0,0.000256,2]
[343225097,1732491038658,-422.00011,0.00026,2]
[343225098,1732491038667,-300.0,0.000266,2]
[343225099,1732491038676,-216.803026,0.00026921,2]
[343225100,1732491038685,-353.815,0.00027056,2]
[343225101,1732491038694,-642.62,0.00027296,2]
[343225102,1732491038706,-529.24,0.00027296,2]
[343225103,1732491038715,-500.0,0.00027296,2]
[343225104,1732491038725,-500.0,0.00027296,2]
[343225105,1732491038735,-500.0,0.00027296,2]
[343225107,1732491038745,-500.0,0.00027296,2]
[343225109,1732491038755,-541.59,0.00027296,2]
[343225111,1732491038764,-420.0,0.00027498,2]
[343225113,1732491038775,-642.62,0.0002757,2]
[343225114,1732491038784,-500.0,0.0002757,2]
[343225116,1732491038794,-500.0,0.0002757,2]
[343225117,1732491038804,-500.0,0.0002757,2]
[343225118,1732491038815,-500.0,0.0002757,2]
[343225119,1732491038824,-300.0,0.000276,2]
[343225120,1732491038833,-472.0,0.00027671,2]
[343225121,1732491038843,-442.21,0.00027812,10]
[343225122,1732491038852,-244.02202198,0.00027821,2]
[343225123,1732491038861,-85174.48855575,0.00027822,2]
[343225124,1732491038873,-1084.06689555,0.00027822,2]
[343225125,1732491038885,-499.9978326,0.00027822,2]
[343225161,1732491040472,-8727.69945177,0.00027822,2]
[343225162,1732491040482,-642.62,0.00027844,2]
[343225163,1732491040491,-446.28054823,0.00027844,2]
[343225189,1732491057362,-53.71945177,0.00027844,2]
[343225190,1732491057372,-500.0,0.00027844,2]
[343225191,1732491057382,-338.54,0.00027844,2]
[343225192,1732491057391,-500.0,0.00027844,2]
[343225193,1732491057401,-472.0,0.00027945,2]
[343225194,1732491057411,-367.58466392,0.00027999,2]
[343225195,1732491057420,-102763.1055485,0.00028,2]
[343225196,1732491057430,-8314.11,0.0002805,5]
[343225197,1732491057440,-642.62,0.00028118,2]
[343225198,1732491057449,-500.0,0.00028118,2]
[343225199,1732491057460,-500.0,0.00028118,2]
[343225200,1732491057470,-354.4,0.00028118,2]
[343225201,1732491057480,-472.0,0.00028219,2]
[343225202,1732491057490,-806.48,0.000283,2]
[343225203,1732491057500,-642.62,0.00028392,2]
[343225204,1732491057509,-500.0,0.00028392,2]
[343225205,1732491057519,-196.85,0.00028392,2]
[343225206,1732491057529,-1437.11925007,0.00028458,2]
[343225207,1732491057539,-1437.11925005,0.00028471,2]
[343225208,1732491057549,-1050.01040086,0.00028476,2]
[343225209,1732491057558,-1437.11925005,0.00028485,2]
[343225210,1732491057568,-472.0,0.00028493,2]
[343225211,1732491057578,-1437.11925005,0.00028498,2]
[343225212,1732491057587,-1437.11925005,0.00028512,2]
[343225213,1732491057597,-1437.11925005,0.00028525,2]
[343225214,1732491057607,-1437.11925005,0.00028539,2]
[343225215,1732491057617,-1437.11925005,0.00028552,2]
[343225216,1732491057627,-330.0,0.00028552,2]
[343225217,1732491057636,-500.0,0.00028557,2]
[343225218,1732491057646,-3349.87280361,0.00028558,2]
[343225219,1732491057657,-102192.35912489,0.00028558,2]
[343225220,1732491057715,-35169.42866196,0.00028558,2]
[343225221,1732491057737,-684.66197027,0.0002799,10]
[343225222,1732491137904,192.266176,0.00013973,2]
[343225223,1732491429763,3000.0,0.0002,2]
[343225226,1732491889418,190.669103,0.00013973,2]
[343225242,1732492233069,-190.669103,0.00020447,2]
[343225244,1732492233079,-190.669103,0.00026921,2]
[343225245,1732492233089,-300.0,0.00028115,2]
[343225246,1732492233098,-63.57175527,0.00028116,2]
[343225351,1732492246835,-467.16824473,0.00028116,2]
[343225352,1732492246845,-500.0,0.00028116,2]
[343225353,1732492246855,-76.11673569,0.00028116,2]
[343225355,1732492602893,178.935816,0.00013973,2]
[343225356,1732492803057,709968.19169713,0.0002632,30]
[343225370,1732493196114,-178.935816,0.00020447,2]
[343225371,1732493196136,-56.8163976,0.00026921,2]
[343225407,1732493437893,-182.0,0.00022,2]
[343225408,1732493437903,-183.0,0.00023014,2]
[343225409,1732493437912,-162.07930823,0.00026821,2]
[343225410,1732493437922,-122.1194184,0.00026921,2]
[343225411,1732493437932,-300.0,0.00028114,2]
[343225412,1732493437942,-500.0,0.00028115,2]
[343225413,1732493437952,-500.0,0.00028115,2]
[343225414,1732493437962,-428.15326431,0.00028115,2]
[343225415,1732493437972,-112.16331306,0.00028115,2]
[343225420,1732493439718,-387.83668694,0.00028115,2]
[343225421,1732493439729,-500.0,0.00028115,2]
[343225422,1732493439739,-421.66330406,0.00028115,2]
[343225423,1732493439771,-78.33669594,0.00028115,2]
[343225424,1732493439781,-500.0,0.00028115,2]
[343225425,1732493439791,-500.0,0.00028115,2]
[343225426,1732493439800,-486.3621777,0.00028115,2]
[343225427,1732493439810,-502.39332399,0.00028115,2]
[343225428,1732493439820,-500.0,0.00028115,2]
[343225429,1732493439830,-525.56629383,0.00028115,2]
[343225430,1732493439840,-309.41753655,0.00028115,2]
[343225431,1732493439849,-623.97,0.00028115,2]
[343225432,1732493439859,-500.0,0.00028115,2]
[343225433,1732493439871,-500.0,0.00028115,2]
[343225434,1732493439882,-502.47969952,0.00028115,2]
[343225435,1732493439892,-282.92883616,0.00028115,2]
[343225436,1732493439902,-500.0,0.00028115,2]
[343225437,1732493439911,-509.719891,0.00028115,2]
[343225438,1732493439922,-500.0,0.00028115,2]
[343225439,1732493439932,-506.54,0.00028115,2]
[343225440,1732493439941,-500.0,0.00028115,2]
[343225441,1732493439951,-500.0,0.00028115,2]
[343225442,1732493439960,-508.79115503,0.00028115,2]
[343225443,1732493439970,-612.98,0.00028115,2]
[343225444,1732493439980,-500.0,0.00028115,2]
[343225445,1732493439990,-500.0,0.00028115,2]
[343225446,1732493440000,-500.0,0.00028115,2]
[343225447,1732493440010,-500.0,0.00028115,2]
[343225448,1732493440019,-500.0,0.00028115,2]
[343225449,1732493440028,-500.0,0.00028115,2]
[343225450,1732493440038,-500.0,0.00028115,2]
[343225451,1732493440048,-626.69,0.00028115,2]
[343225452,1732493440058,-500.0,0.00028115,2]
[343225453,1732493440067,-500.0,0.00028115,2]
[343225454,1732493440076,-500.0,0.00028115,2]
[343225455,1732493440086,-507.92304083,0.00028115,2]
[343225456,1732493440095,-484.72224084,0.00028115,2]
[343225457,1732493440105,-500.0,0.00028115,2]
[343225458,1732493440114,-500.0,0.00028115,2]
[343225459,1732493440126,-504.74,0.00028115,2]
[343225460,1732493440135,-500.0,0.00028115,2]
[343225461,1732493440144,-550.75,0.00028115,2]
[343225462,1732493440154,-500.0,0.00028115,2]
[343225463,1732493440164,-500.0,0.00028115,2]
[343225464,1732493440174,-184.2690791,0.00028115,2]
[343225465,1732493440184,-405.5941018,0.00028115,2]
[343225466,1732493440193,-500.0,0.00028115,2]
[343225467,1732493440203,-500.0,0.00028115,2]
[343225468,1732493440213,-1003.87,0.00028115,2]
[343225469,1732493440222,-500.0,0.00028115,2]
[343225470,1732493440232,-500.0,0.00028115,2]
[343225471,1732493440242,-500.0,0.00028115,2]
[343225472,1732493440251,-512.02917756,0.00028115,2]
[343225473,1732493440262,-500.0,0.00028115,2]
[343225474,1732493440271,-500.0,0.00028115,2]
[343225475,1732493440281,-500.0,0.00028115,2]
[343225476,1732493440291,-500.0,0.00028115,2]
[343225477,1732493440301,-500.0,0.00028115,2]
[343225478,1732493440311,-550.36,0.00028115,2]
[343225479,1732493440320,-500.0,0.00028115,2]
[343225480,1732493440330,-500.0,0.00028115,2]
[343225481,1732493440339,-331.32,0.00028389,2]
[343225482,1732493440349,-272.07,0.00028389,2]
[343225483,1732493440359,-263.16,0.00028389,2]
[343225484,1732493440372,-500.0,0.00028389,2]
[343225485,1732493440384,-243.82,0.00028389,2]
[343225486,1732493440395,-165.84,0.00028389,2]
[343225487,1732493440405,-412.61,0.00028389,2]
[343225488,1732493440415,-500.0,0.00028389,2]
[343225489,1732493440425,-1003.87,0.00028389,2]
[343225490,1732493440435,-500.0,0.00028389,2]
[343225491,1732493440444,-500.0,0.00028389,2]
[343225492,1732493440455,-725.83,0.000284,2]
[343225493,1732493440466,-415.56,0.00028444,10]
[343225494,1732493440475,-257.30926475,0.00028453,2]
[343225495,1732493440484,-112017.87394309,0.00028454,2]
[343225509,1732493442961,-346.3,0.00028444,10]
[343225510,1732493442971,-973.37822229,0.00028454,2]
[343225511,1732493442983,-1396.52641848,0.00028454,2]
[343225519,1732493519803,164.062903,0.00013973,2]
[343225528,1732494463126,164.165821,0.00013973,2]
[343225529,1732494497419,499.90996127,0.0002,2]
[343225592,1732494632002,-164.165821,0.00020447,2]
[343225593,1732494632013,-300.0,0.00024979,2]
[343225594,1732494632022,-169.74125699,0.00024979,2]
[343225595,1732494632034,-130.25874301,0.00024979,2]
[343225596,1732494632044,-234.65027829,0.0002498,2]
[343225597,1732494632053,-191.95619512,0.0002498,2]
[343225598,1732494632065,-1313.732686,0.0002498,2]
[343225599,1732494632076,-335.5000105,0.0002498,2]
[343225600,1732494632088,-3345.767573,0.0002498,2]
[343225601,1732494632103,-1642.67919877,0.0002498,2]
[343225619,1732494638047,-25254.75436346,0.0002498,2]
[343225623,1732494639957,-856.000005,0.0002498,2]
[343225624,1732494639969,-36216.73766502,0.0002498,2]
[343225625,1732494639978,-963.93702149,0.00026409,2]
[343225626,1732494639987,-500.0,0.000269,2]
[343225627,1732494639997,-500.0,0.000269,2]
[343225628,1732494640006,-500.0,0.000269,2]
[343225629,1732494640015,-623.97201636,0.000269,2]
[343225630,1732494640024,-164.165821,0.00026921,2]
[343225631,1732494640033,-389.0,0.00027,2]
[343225632,1732494640043,-393.0,0.00027477,2]
[343225633,1732494640052,-300.0,0.000276,2]
[343225634,1732494640061,-389.0,0.00027671,2]
[343225635,1732494640071,-389.0,0.00027945,2]
[343225636,1732494640080,-3809.0,0.00028,2]
[343225637,1732494640090,-389.0,0.00028219,2]
[343225638,1732494640099,-225.55,0.00028387,2]
[343225639,1732494640109,-523.73,0.0002839,10]
[343225640,1732494640118,-436.44,0.0002839,10]
[343225641,1732494640127,-180.11648532,0.00028399,2]
[343225642,1732494640136,-500.0,0.00028399,2]
[343225643,1732494640145,-653.25,0.000284,2]
[343225644,1732494640155,-49849.60099079,0.000284,2]
[343225674,1732494643028,-363.7,0.0002839,10]
[343225676,1732494643038,-4928.90710297,0.000284,2]
[343225699,1732494646060,-380.94947846,0.000284,2]
[343225706,1732495182929,163.956744,0.00013973,2]
[343225713,1732495515093,250.0,0.00028,30]
[343225714,1732495531099,250.0,0.00028,31]
[343225715,1732495577117,250.0,0.000201,2]
[343225716,1732495582872,250.0,0.000201,3]
[343225737,1732495803560,250.0,0.000201,3]
[343225738,1732495806315,250.0,0.000201,2]
[343225739,1732495820190,250.0,0.00028,30]
[343225753,1732495832101,-195.02434225,0.00020347,2]
[343225755,1732495832117,-163.956744,0.00020807,2]
[343225757,1732495832127,-63.01899375,0.00024979,2]
[343225758,1732495832160,-300.23100625,0.00024979,2]
[343225759,1732495832174,-601.98740211,0.00024979,2]
[343225760,1732495832185,-394.8808024,0.00025233,2]
[343225761,1732495832196,-300.0,0.00025299,2]
[343225762,1732495832205,-300.0,0.00025299,2]
[343225763,1732495832215,-500.0,0.000253,2]
[343225764,1732495832224,-500.0,0.000253,2]
[343225765,1732495832234,-500.0,0.000253,2]
[343225766,1732495832243,-500.0,0.000253,2]
[343225767,1732495832253,-506.95754395,0.000253,2]
[343225768,1732495832262,-500.0,0.000253,2]
[343225769,1732495832271,-500.0,0.000253,2]
[343225770,1732495832280,-583.91587119,0.000253,2]
[343225771,1732495832290,-65.34919211,0.000253,2]
[343225772,1732495832302,-486.70752064,0.000253,2]
[343225773,1732495832311,-216.43313492,0.000253,2]
[343225774,1732495832320,-333.96934444,0.000253,2]
[343225775,1732495832332,-171.1395771,0.000253,2]
[343225776,1732495832341,-500.45506807,0.000253,2]
[343225777,1732495832350,-500.0,0.00025367,2]
[343225778,1732495832360,-162.1042811,0.00025691,2]
[343225779,1732495832369,-500.0,0.00025783,2]
[343225780,1732495832378,-277.815847,0.00025812,2]
[343225781,1732495832387,-153.0,0.00026511,2]
[343225782,1732495832396,-193.321769,0.00026523,2]
[343225783,1732495832406,-180.19702751,0.00027397,2]
[343225784,1732495832421,-319.80297249,0.00027397,2]
[343225785,1732495832431,-157.0,0.00027399,2]
[343225786,1732495832440,-300.0,0.000276,2]
[343225787,1732495832449,-163.956744,0.00027641,2]
[343225788,1732495832458,-920.21,0.00027973,2]
[343225789,1732495832468,-500.0,0.00027973,2]
[343225790,1732495832477,-520.42,0.00027973,2]
[343225791,1732495832487,-862.27127606,0.00028198,2]
[343225804,1732495838216,250.0,0.00028,60]
[343225805,1732495838256,-262.38503296,0.000253,2]
[343225806,1732495838266,-5377.70465448,0.00028198,2]
[343225807,1732495838277,-160.0,0.00028227,5]
[343225808,1732495838286,-920.21,0.00028247,2]
[343225809,1732495838296,-500.0,0.00028247,2]
[343225810,1732495838305,-175.4,0.0002829,10]
[343225811,1732495838315,-273.85,0.0002829,10]
[343225812,1732495838325,-228.21,0.0002829,10]
[343225813,1732495838334,-190.18,0.0002829,10]
[343225814,1732495838343,-500.0,0.00028299,2]
[343225815,1732495838353,-342.54328016,0.000283,2]
[343225816,1732495838362,-74913.80525926,0.000283,2]
[343225817,1732495838373,-3569.71,0.000283,2]
[343225821,1732495840961,-587.3184,0.000283,2]
[343225822,1732495841185,-164445.77530356,0.000283,2]
[343225823,1732495841241,-1360.0001,0.000283,2]
[343225824,1732495841252,-2418.18570807,0.000283,2]
[343225848,1732495843131,-500.0,0.00027444,2]
[343225849,1732495843141,-2705.20522911,0.000283,2]
[343225850,1732495843151,-189.62085443,0.000283,2]
[343225851,1732495843161,-587.92,0.000284,2]
[343225852,1732495843170,-1450.43148296,0.00028453,2]
[343225853,1732495843183,-500.0,0.00028473,5]
[343225854,1732495843192,-3200.0,0.00028486,2]
[343225855,1732495843202,-389.0,0.00028493,2]
[343225856,1732495843211,-2419.96890092,0.000285,14]
[343225857,1732495843223,-2440.04387935,0.000285,14]
[343225858,1732495844648,163.620342,0.00013973,2]
[343225866,1732495846215,-163.620342,0.00021661,2]
[343225867,1732495846225,-1904.15,0.0002849,10]
[343225868,1732495846234,-150005.96703159,0.000285,14]
[343225877,1732496108904,260.72,0.00028,30]
[343225878,1732496115823,260.72,0.00028,40]
[343225879,1732496168188,291.85200433,0.00028,31]
[343225880,1732496201419,570.846025,0.00020071,2]
[343225881,1732496420533,24900.0,0.00020067,2]
[343225884,1732496516722,163.096682,0.00013973,2]
[343225885,1732496617792,871.9524424,0.00020063,2]
[343225886,1732496677675,6716.324758,0.00020059,2]
[343225887,1732496773989,307.2932981,0.00027589,30]
[343225888,1732496774017,448.8167017,0.00027726,30]
[343225889,1732496794098,-235.7522136,0.00020744,2]
[343225890,1732496840096,21331.0348317,0.00020034,2]
[343225891,1732496902692,285.423012,0.00020036,2]
[343225903,1732497022395,500.0,0.0002,2]
[343225981,1732497032687,-2632.88887826,0.00020744,2]
[343225983,1732497032698,-722.59937,0.00020744,2]
[343225987,1732497032717,-418.99998,0.00020744,2]
[343226537,1732497038471,-1713.90934,0.00020744,2]
[343226539,1732497038483,-888.94369011,0.00020744,2]
[343226541,1732497038496,-103.23128603,0.00020744,2]
[343226543,1732497038506,-150.67282191,0.00020959,2]
[343226545,1732497038515,-3000.0,0.00021,2]
[343226547,1732497038526,-300.0,0.00021004,2]
[343226549,1732497038536,-300.0,0.00021004,2]
[343226552,1732497038545,-1264.47316462,0.0002101,2]
[343226639,1732497040259,-644.69443496,0.0002101,2]
[343226640,1732497040323,-1090.83240042,0.0002101,2]
[343226641,1732497040333,-3000.0,0.0002102,2]
[343226642,1732497040342,-3000.0,0.0002103,2]
[343226643,1732497040351,-2464.37518255,0.00021031,2]
[343226644,1732497040361,-500.0,0.00021039,2]
[343226645,1732497040371,-3000.0,0.0002104,2]
[343226646,1732497040383,-3000.0,0.0002105,2]
[343226647,1732497040392,-152.0,0.0002105,2]
[343226648,1732497040402,-1493.0206768,0.00021059,2]
[343226649,1732497040411,-500.0,0.00021059,2]
[343226650,1732497040420,-500.0,0.00021059,2]
[343226651,1732497040429,-500.0,0.00021059,2]
[343226652,1732497040443,-500.0,0.00021059,2]
[343226653,1732497040455,-500.0,0.00021059,2]
[343226654,1732497040465,-500.0,0.00021059,2]
[343226655,1732497040475,-500.0,0.00021059,2]
[343226656,1732497040486,-500.0,0.00021059,2]
[343226657,1732497040496,-500.0,0.00021059,2]
[343226658,1732497040506,-179.58315598,0.00021059,2]
[343226659,1732497040516,-500.0,0.00021059,2]
[343226660,1732497040525,-520.0,0.00021059,2]
[343226661,1732497040535,-500.0,0.00021059,2]
[343226663,1732497040545,-500.0,0.00021059,2]
[343226664,1732497040554,-500.91486296,0.00021059,2]
[343226665,1732497040563,-505.93734496,0.00021059,2]
[343226666,1732497040573,-500.0,0.00021059,2]
[343226667,1732497040582,-500.7520182,0.00021059,2]
[343226668,1732497040591,-500.0,0.00021059,2]
[343226669,1732497040600,-501.2459461,0.00021059,2]
[343226670,1732497040610,-500.0,0.00021059,2]
[343226671,1732497040619,-500.0,0.00021059,2]
[343226672,1732497040632,-320.40367123,0.00021059,2]
[343226673,1732497040643,-500.0,0.00021059,2]
[343226674,1732497040653,-504.35796079,0.00021059,2]
[343226675,1732497040662,-500.0,0.00021059,2]
[343226676,1732497040671,-544.08832026,0.00021059,2]
[343226677,1732497040681,-500.0,0.00021059,2]
[343226678,1732497040690,-289.60644307,0.00021059,2]
[343226679,1732497040699,-500.0,0.00021059,2]
[343226680,1732497040708,-996.45,0.00021059,2]
[343226681,1732497040718,-500.0,0.00021059,2]
[343226682,1732497040726,-3000.0,0.0002106,2]
[343226683,1732497040735,-3000.0,0.0002107,2]
[343226684,1732497040744,-3000.0,0.0002108,2]
[343226685,1732497040753,-602.16984516,0.0002108,2]
[343226686,1732497040763,-3000.0,0.0002109,2]
[343226687,1732497040772,-3000.0,0.000211,2]
[343226688,1732497040782,-3000.0,0.0002111,2]
[343226689,1732497040791,-3000.0,0.0002112,2]
[343226690,1732497040801,-3000.0,0.0002113,2]
[343226691,1732497040810,-3000.0,0.0002114,2]
[343226692,1732497040819,-3000.0,0.0002115,2]
[343226693,1732497040828,-5653.302643,0.0002116,2]
[343226694,1732497040837,-500.0,0.00021179,2]
[343226696,1732497040846,-500.0,0.00021179,2]
[343226697,1732497040855,-500.0,0.00021179,2]
[343226699,1732497040865,-217.95548085,0.00021179,2]
[343226700,1732497040874,-633.96875421,0.00021179,2]
[343226701,1732497040893,-500.0,0.00021179,2]
[343226702,1732497040902,-500.0,0.00021179,2]